bitfinex/quotes_ETHUSD_20260121
["timestamp","ask_amount","ask_price","bid_price","bid_amount"]
[1768985772488,12.3726112,2963.0,2962.5,0.002]
[1768985772674,12.3726112,2963.0,2962.5,12.69309337]
[1768985773217,12.3726112,2963.0,2962.5,0.002]
[1768985773412,12.3726112,2963.0,2962.3,0.002]
[1768985773714,12.3726112,2962.8,2962.2,0.002]
[1768985773885,12.3726112,2962.8,2962.2,12.69309337]
[1768985774208,0.001,2963.5,2962.6,12.69109337]
[1768985774403,12.3736112,2963.5,2962.6,12.69109337]
[1768985774909,12.3736112,2963.5,2962.8,4.92767222]
[1768985775078,13.61097232,2963.5,2962.9,12.69109337]
[1768985775580,0.04218127,2963.4,2962.9,12.69109337]
[1768985776084,12.67913928,2963.9,2963.2,12.98048746]
[1768985776287,0.04217558,2963.8,2963.2,12.98048746]
[1768985776507,12.72131486,2963.8,2963.2,12.98048746]
[1768985776705,13.95127077,2963.8,2963.2,12.98048746]
[1768985777992,1.27213149,2963.8,2963.2,12.98048746]
[1768985778576,12.67913928,2964.1,2963.2,12.98048746]
[1768985778775,12.67993928,2964.2,2963.5,12.98048746]
[1768985783317,12.67913928,2964.6,2963.8,12.98048746]
[1768985783493,0.0008,2965.0,2964.6,12.98048746]
[1768985783703,0.0008,2965.0,2964.6,12.76772642]
[1768985784731,15.01457528,2965.6,2964.7,12.98048746]
[1768985784912,12.67913928,2965.6,2964.7,12.98048746]
[1768985785122,12.67913928,2965.6,2964.5,4.92767222]
[1768985785123,12.67913928,2965.9,2965.3,12.98048746]
[1768985785294,12.67913928,2965.9,2965.4,12.98048746]
[1768985785295,12.72128642,2965.8,2965.4,12.98048746]
[1768985785499,12.67913928,2965.8,2965.3,12.98048746]
[1768985785917,12.67913928,2965.8,2964.9,12.98048746]
[1768985786126,12.67913928,2965.6,2964.6,12.98048746]
[1768985786294,12.67913928,2965.4,2964.6,12.98048746]
[1768985786621,13.95126835,2965.4,2964.6,12.98048746]
[1768985786987,0.04215425,2965.3,2964.6,12.98048746]
[1768985787736,12.67913928,2965.2,2964.6,12.98048746]
[1768985787931,12.67913928,2965.0,2964.1,12.98048746]
[1768985788090,12.67913928,2964.8,2964.1,12.98048746]
[1768985788288,0.04216278,2964.7,2964.1,12.98048746]
[1768985788494,12.67913928,2964.9,2964.1,12.98048746]
[1768985788705,12.72130063,2964.8,2964.1,12.98048746]
[1768985788925,0.04216278,2964.7,2964.1,12.98048746]
[1768985792106,13.95126934,2964.8,2964.1,12.98048746]
[1768985793639,1.27213006,2964.8,2964.1,12.98048746]
[1768985794102,13.95126934,2964.8,2964.1,12.98048746]
[1768985795036,1.27213006,2964.8,2964.1,12.98048746]
[1768985795543,12.67913928,2965.3,2964.2,12.98048746]
[1768985795719,12.67913928,2965.3,2964.5,12.98048746]
[1768985795917,12.67810937,2965.3,2964.5,12.98048746]
[1768985796819,0.001,2964.6,2964.5,12.98048746]
[1768985797019,12.67913928,2965.4,2964.6,12.98048746]
[1768985801418,12.67913928,2965.4,2964.7,12.98048746]
[1768985803141,12.67913928,2965.8,2964.7,16.35349138]
[1768985803335,12.67913928,2965.6,2964.8,12.98048746]
[1768985803531,0.0421514,2965.5,2964.8,12.98048746]
[1768985803845,12.67913928,2965.5,2964.8,12.98048746]
[1768985804007,12.67913928,2966.1,2964.8,12.98048746]
[1768985804209,12.67913928,2965.9,2964.8,12.98048746]
[1768985804436,12.67913928,2965.8,2965.0,12.98048746]
[1768985804634,12.67913928,2965.8,2965.0,14.61581571]
[1768985806648,12.24309027,2966.2,2965.2,11.80682951]
[1768985806836,12.24309027,2966.2,2965.3,11.80682951]
[1768985807544,12.24309027,2966.0,2965.3,11.80682951]
[1768985807747,12.24309027,2966.5,2965.3,13.03959983]
[1768985807914,12.24309027,2966.3,2965.3,13.03959983]
[1768985808109,12.28523173,2966.2,2965.3,13.03959983]
[1768985808347,12.24309027,2966.2,2965.3,13.03959983]
[1768985808709,0.001,2965.6,2965.3,13.03959983]
[1768985808911,12.24389027,2966.6,2965.6,11.80682951]
[1768985809226,0.0008,2966.6,2965.9,11.80682951]
[1768985809760,0.04293577,2966.6,2965.9,11.80682951]
[1768985809915,0.0008,2966.6,2965.9,11.80682951]
[1768985810116,0.0008,2966.6,2966.1,11.80682951]
[1768985810342,0.0008,2966.6,2966.2,11.80682951]
[1768985811319,12.24309027,2967.7,2966.6,11.80682951]
[1768985811537,0.0008,2967.9,2966.9,11.80682951]
[1768985811538,12.24309027,2967.8,2966.9,11.80682951]
[1768985811739,12.24309027,2967.6,2966.9,11.80682951]
[1768985811937,12.24309027,2967.6,2967.1,11.80682951]
[1768985812125,12.24309027,2967.6,2966.9,12.36482951]
[1768985812338,12.24309027,2967.4,2966.9,11.80682951]
[1768985812526,4.92281319,2967.9,2966.9,11.80682951]
[1768985812527,12.24309027,2967.8,2966.9,11.80682951]
[1768985812718,12.24309027,2967.8,2967.0,3.37040781]
[1768985812919,12.24389027,2967.9,2967.2,11.80682951]
[1768985813132,0.0008,2967.9,2967.2,11.80682951]
[1768985813337,0.0008,2967.9,2967.5,11.80682951]
[1768985813828,0.0008,2968.2,2967.7,4.92201319]
[1768985814173,0.0008,2968.2,2967.8,11.80682951]
[1768985814322,0.0008,2968.2,2967.9,13.47971378]
[1768985815069,0.0008,2968.2,2967.5,11.80682951]
[1768985815070,12.24389027,2968.2,2967.5,11.80682951]
[1768985815222,12.24309027,2968.0,2967.4,11.80682951]
[1768985816553,12.24309027,2968.0,2967.5,11.80682951]
[1768985817645,0.0008,2968.2,2967.5,11.80682951]
[1768985817865,12.24309027,2968.1,2967.5,11.80682951]
[1768985819537,12.24309027,2968.1,2967.0,1.22210269]
[1768985819538,13.4674793,2968.1,2967.0,1.22210269]
[1768985819741,12.24309027,2967.9,2966.9,11.80682951]
[1768985820062,12.24309027,2967.7,2967.0,11.80682951]
[1768985820960,12.24309027,2967.5,2966.8,11.80682951]
[1768985821829,0.001,2967.8,2966.9,12.60810051]
[1768985822033,0.001,2967.8,2967.1,12.60810051]
[1768985824161,11.79903366,2967.8,2967.1,12.60810051]
[1768985828743,0.001,2967.8,2967.1,12.60810051]
[1768985829134,0.001,2967.8,2967.2,12.60810051]
[1768985830461,0.001,2967.8,2967.3,12.60810051]
[1768985830665,0.001,2967.8,2967.5,12.60810051]
[1768985833660,0.0008,2968.2,2967.4,1.59782671]
[1768985833837,11.79883366,2968.2,2967.5,12.60810051]
[1768985836142,11.79883366,2968.2,2967.3,0.002]
[1768985836344,11.88488972,2968.0,2967.3,0.002]
[1768985836544,11.88488972,2967.8,2967.3,12.55649352]
[1768985838154,11.88488972,2967.8,2967.3,0.002]
[1768985838445,11.88488972,2967.8,2967.3,12.55649352]
[1768985838670,11.88488972,2968.0,2967.4,12.55449352]
[1768985840243,11.88488972,2968.0,2967.3,6.17062145]
[1768985840448,12.06177452,2967.8,2967.0,0.002]
[1768985840661,12.06177452,2967.6,2967.0,0.002]
[1768985841360,12.06177452,2967.6,2967.0,12.36904087]
[1768985842288,12.06177452,2967.6,2967.0,13.94300813]
[1768985844084,12.06177452,2967.6,2967.2,0.002]
[1768985845484,12.06177452,2967.6,2967.2,12.36904087]
[1768985845653,12.06177452,2968.1,2967.2,12.36904087]
[1768985845849,12.06177452,2967.9,2967.2,12.36904087]
[1768985847201,13.26795197,2967.9,2967.2,12.36904087]
[1768985847901,0.04211874,2967.8,2967.2,0.002]
[1768985848205,12.06177452,2967.7,2967.2,0.002]
[1768985848496,12.06177452,2967.5,2967.2,0.002]
[1768985850902,12.06177452,2967.9,2967.3,12.36704087]
[1768985851198,12.06177452,2968.1,2967.4,12.36704087]
[1768985851362,0.0008,2968.2,2967.7,12.36704087]
[1768985854287,0.0008,2968.2,2967.9,12.36704087]
[1768985854487,4.9129721,2969.3,2967.9,12.36704087]
[1768985854488,12.06177452,2969.0,2967.9,12.36704087]
[1768985854700,15.452927,2968.9,2967.9,14.76896334]
[1768985854889,12.06177452,2968.8,2967.9,14.76896334]
[1768985855075,12.06177452,2968.8,2968.0,12.36704087]
[1768985855684,12.06177452,2969.3,2968.2,12.36704087]
[1768985855889,0.0008,2969.4,2968.2,12.36704087]
[1768985855890,12.06177452,2969.1,2968.2,12.36704087]
[1768985856879,12.06257452,2969.4,2968.5,12.36704087]
[1768985857079,12.06257452,2969.4,2968.7,12.36704087]
[1768985859093,12.06177452,2969.2,2968.6,1.02008798]
[1768985859297,12.06177452,2969.0,2968.3,12.36704087]
[1768985859603,12.06177452,2969.0,2968.3,3.36892156]
[1768985859817,12.06177452,2969.0,2968.4,12.36704087]
[1768985859999,12.06177452,2969.0,2968.2,12.36704087]
[1768985860213,12.06177452,2969.0,2968.3,13.99635902]
[1768985860773,12.06177452,2968.8,2968.1,12.36704087]
[1768985868015,12.06177452,2968.8,2967.8,0.557]
[1768985868016,11.76741244,2968.6,2967.9,12.04376122]
[1768985871220,11.76741244,2968.6,2967.5,12.04376122]
[1768985871519,11.76741244,2968.6,2967.6,12.04376122]
[1768985871689,12.94415368,2968.6,2967.6,13.58511146]
[1768985873685,12.94415368,2968.6,2967.7,12.04376122]
[1768985876517,11.76741244,2968.4,2967.6,13.58511146]
[1768985877105,11.76741244,2968.4,2967.7,12.04376122]
[1768985877919,11.76741244,2968.4,2967.8,12.04376122]
[1768985878219,11.76741244,2968.4,2967.9,13.58509827]
[1768985880322,11.76841244,2968.4,2967.9,13.58509827]
[1768985882421,0.001,2968.4,2967.9,13.58509827]
[1768985888005,11.88790117,2968.4,2967.9,13.58509827]
[1768985891407,11.88790117,2968.4,2967.9,12.04376122]
[1768985891938,11.88790117,2968.4,2967.8,0.002]
[1768985892636,11.88790117,2968.4,2968.1,0.002]
[1768985892839,11.88790117,2968.2,2968.1,0.002]
[1768985893045,11.88790117,2968.2,2967.9,0.002]
[1768985893340,13.07679129,2968.2,2967.8,0.002]
[1768985894813,13.07679129,2968.2,2967.2,0.002]
[1768985895013,13.07679129,2968.2,2967.2,12.901466]
[1768985895629,11.96720161,2968.0,2967.2,12.901466]
[1768985895820,11.96720161,2968.0,2967.3,16.89435339]
[1768985896026,11.96820161,2968.2,2967.4,11.98372293]
[1768985901122,11.96720161,2968.0,2967.3,14.010374]
[1768985902250,11.96720161,2968.0,2967.2,0.002]
[1768985902546,11.96720161,2968.0,2967.2,11.98572293]
[1768985903060,0.001,2968.2,2967.2,11.98572293]
[1768985903061,11.96720161,2967.8,2967.2,11.98572293]
[1768985903365,11.96720161,2967.8,2967.2,0.002]
[1768985906646,11.96720161,2967.8,2967.4,0.002]
[1768985906851,13.16492177,2967.8,2967.4,0.002]
[1768985908453,13.16492177,2967.8,2967.2,0.002]
[1768985908454,11.96720161,2967.6,2967.2,0.002]
[1768985914159,0.04212299,2967.5,2967.2,0.002]
[1768985914331,11.96720161,2967.4,2967.2,0.002]
[1768985915343,11.96720161,2967.7,2967.2,0.002]
[1768985915550,13.16402177,2967.7,2967.2,0.002]
[1768985918859,11.96720161,2967.5,2967.2,0.002]
[1768985919659,11.96720161,2967.5,2967.4,0.002]
[1768985919871,11.96820161,2967.5,2967.2,0.002]
[1768985922670,12.00932602,2967.4,2967.2,0.002]
[1768985922865,11.96720161,2967.4,2967.2,0.002]
[1768985923952,11.96720161,2967.2,2966.4,11.98572293]
[1768985924142,11.96720161,2967.2,2966.5,11.98372293]
[1768985925770,11.96720161,2967.2,2966.4,12.18966146]
[1768985927344,11.96720161,2967.2,2966.4,0.002]
[1768985928587,11.96720161,2967.2,2966.4,12.18966146]
[1768985929137,12.23320428,2967.0,2966.4,12.18966146]
[1768985929567,12.23320428,2967.0,2966.4,0.002]
[1768985929770,13.45652471,2967.0,2966.4,0.002]
[1768985931570,13.45652471,2967.0,2966.6,0.002]
[1768985933069,12.23320428,2966.8,2966.6,0.002]
[1768985936677,12.23320428,2967.0,2966.6,0.002]
[1768985937678,13.45652471,2967.0,2966.6,0.002]
[1768985938474,13.45652471,2967.0,2966.6,12.18966146]
[1768985939054,12.23320428,2967.2,2966.6,12.18966146]
[1768985939445,12.23320428,2967.4,2966.6,12.18966146]
[1768985940553,12.23320428,2967.6,2966.6,12.18966146]
[1768985940852,12.23320428,2967.6,2966.8,12.62250362]
[1768985941270,12.46106675,2967.5,2966.8,12.62250362]
[1768985941467,1.24610668,2967.4,2966.8,12.62250362]
[1768985941645,0.001,2967.5,2967.1,12.62250362]
[1768985943389,0.001,2967.2,2967.1,12.62250362]
[1768985947408,0.001,2967.2,2966.8,12.62250362]
[1768985949169,0.001,2967.2,2966.8,14.37657704]
[1768985949952,0.001,2967.5,2966.9,12.62250362]
[1768985950287,0.001,2967.5,2967.1,12.62250362]
[1768985950899,0.001,2967.5,2967.0,4.9162306]
[1768985951062,0.001,2967.5,2967.0,17.53873422]
[1768985951268,0.001,2967.5,2967.1,12.62250362]
[1768985952863,0.04312299,2967.5,2967.1,12.62250362]
[1768985953492,0.001,2967.5,2967.1,12.62250362]
[1768985955367,0.001,2967.3,2967.1,12.62250362]
[1768985957001,12.62968701,2967.3,2966.8,11.80173577]
[1768985957299,12.62968701,2967.3,2966.6,11.80373577]
[1768985957507,12.62968701,2967.3,2966.6,13.86873421]
[1768985958201,12.62968701,2967.3,2966.6,0.002]
[1768985958401,12.62968701,2967.3,2966.6,11.80373577]
[1768985961788,12.50468701,2967.3,2966.7,11.80173577]
[1768985963030,0.001,2967.5,2966.7,11.80173577]
[1768985963183,12.62968701,2967.5,2966.8,11.80173577]
[1768985963378,12.62968701,2967.5,2967.0,11.80173577]
[1768985963904,12.62968701,2967.5,2966.9,1.67179664]
[1768985964402,12.62968701,2967.5,2966.9,13.47353241]
[1768985965979,12.62868701,2967.3,2966.9,1.67179664]
[1768985966312,12.62868701,2967.3,2966.6,11.80373577]
[1768985967511,12.62868701,2967.3,2966.8,0.002]
[1768985967720,12.62868701,2967.3,2966.8,11.80373577]
[1768985969419,12.62968701,2967.5,2966.8,11.80373577]
[1768985970315,0.001,2967.5,2966.8,11.80373577]
[1768985970496,0.001,2967.5,2967.0,11.80173577]
[1768985971215,12.62968701,2967.5,2967.0,11.80173577]
[1768985971517,0.001,2967.5,2967.0,11.80173577]
[1768985971905,12.62968701,2967.5,2967.0,11.80173577]
[1768985972318,12.62968701,2967.5,2967.0,11.67673577]
[1768985973430,12.62968701,2967.5,2966.9,11.80173577]
[1768985975920,13.89265571,2967.5,2966.8,0.002]
[1768985976091,12.62868701,2967.3,2966.8,0.002]
[1768985976412,12.62868701,2967.1,2966.8,0.002]
[1768985980113,12.62868701,2967.1,2967.0,0.002]
[1768985980814,13.53093467,2967.1,2967.0,0.002]
[1768985981014,13.53093467,2967.1,2966.8,0.002]
[1768985982296,12.62868701,2967.1,2966.8,0.002]
[1768985985598,12.46756026,2967.4,2966.8,12.93810789]
[1768985985794,12.46756026,2967.2,2966.8,12.93810789]
[1768985988321,12.46756026,2967.2,2966.8,0.002]
[1768985990522,12.46756026,2967.2,2966.8,12.93810789]
[1768985991234,0.001,2967.5,2966.9,12.93610789]
[1768985992335,12.46856026,2967.5,2966.9,12.93610789]
[1768985993136,12.46856026,2967.5,2967.0,12.93810789]
[1768985998539,12.46856026,2967.5,2967.0,0.002]
[1768985998714,12.46756026,2967.3,2967.0,0.002]
[1768986000324,12.46756026,2967.1,2967.0,0.002]
[1768986001221,12.46756026,2967.1,2966.6,0.002]
[1768986003557,11.72277625,2966.9,2966.6,0.002]
[1768986004342,11.72277625,2967.2,2966.6,12.33676382]
[1768986004912,11.72277625,2967.2,2966.8,0.002]
[1768986005145,12.94043599,2967.2,2966.8,0.002]
[1768986005312,1.21765974,2967.2,2966.8,12.33676382]
[1768986005643,0.04312583,2967.3,2966.8,12.33676382]
[1768986005816,0.001,2967.3,2966.8,12.33676382]
[1768986006140,11.72377625,2967.3,2966.8,12.33676382]
[1768986006346,11.72277625,2967.1,2966.8,0.002]
[1768986006727,11.72277625,2967.2,2966.8,12.33676382]
[1768986007246,0.001,2967.3,2966.8,12.33676382]
[1768986007541,0.001,2967.3,2966.8,13.5706402]
[1768986009422,11.72377625,2967.3,2966.8,12.33676382]
[1768986010752,0.001,2967.3,2966.8,12.33676382]
[1768986011350,11.76590208,2967.3,2966.8,12.33676382]
[1768986011564,11.72377625,2967.3,2966.8,0.002]
[1768986011718,11.72277625,2967.1,2966.8,0.002]
[1768986012855,11.72377625,2967.3,2966.8,12.33676382]
[1768986013053,0.001,2967.3,2966.8,12.33676382]
[1768986014059,0.001,2967.5,2967.1,12.33476382]
[1768986016652,0.001,2967.3,2967.1,12.33476382]
[1768986017435,0.001,2967.3,2966.9,12.08823007]
[1768986017625,12.08470421,2967.3,2966.9,12.08823007]
[1768986017826,0.001,2967.3,2966.9,12.08823007]
[1768986018058,0.001,2967.3,2966.9,13.50350271]
[1768986018234,0.001,2967.3,2966.9,12.08823007]
[1768986019225,12.12683004,2967.3,2966.8,0.002]
[1768986019532,12.08470421,2967.3,2966.8,0.002]
[1768986019735,12.08370421,2967.1,2966.8,0.002]
[1768986022367,12.08370421,2967.2,2966.8,12.09023007]
[1768986024668,0.001,2967.5,2967.1,12.08823007]
[1768986025170,12.08470421,2967.5,2967.1,12.08823007]
[1768986028439,0.001,2967.5,2967.1,12.08823007]
[1768986028873,0.001,2967.3,2967.1,12.08823007]
[1768986030972,0.001,2967.5,2967.1,12.08823007]
[1768986031147,0.001,2967.5,2967.1,13.29725308]
[1768986031349,12.08370421,2967.8,2967.2,12.08823007]
[1768986032450,6.33,2968.0,2967.4,12.08823007]
[1768986032852,12.08370421,2968.7,2967.5,12.08823007]
[1768986033167,12.08370421,2968.5,2967.7,12.08823007]
[1768986033552,12.12581443,2968.4,2967.7,12.08823007]
[1768986033749,12.08370421,2968.4,2967.7,12.08823007]
[1768986034765,6.33,2969.3,2967.4,7.29688023]
[1768986034766,12.08370421,2969.0,2968.0,12.08823007]
[1768986035353,0.04210313,2968.9,2968.0,12.08823007]
[1768986035552,0.04210313,2968.9,2968.0,14.1255371]
[1768986035553,12.08370421,2968.8,2968.0,14.1255371]
[1768986035753,11.24536549,2969.3,2968.0,14.1255371]
[1768986035754,12.12581018,2968.7,2968.0,14.1255371]
[1768986035975,12.08370421,2968.7,2968.0,14.1255371]
[1768986037083,12.08370421,2968.5,2968.0,14.1255371]
[1768986037452,12.08370421,2968.9,2968.0,14.1255371]
[1768986037653,12.08370421,2968.7,2968.0,12.08823007]
[1768986040691,12.08370421,2968.4,2968.0,12.08823007]
[1768986040889,12.08370421,2968.4,2967.6,12.08823007]
[1768986042400,0.001,2968.5,2967.6,12.08823007]
[1768986042401,12.08370421,2968.2,2967.6,12.08823007]
[1768986042603,12.08370421,2968.0,2967.4,12.08823007]
[1768986042972,12.08370421,2968.0,2967.5,12.08823007]
[1768986044371,12.08370421,2968.4,2967.6,12.08823007]
[1768986050819,12.10852569,2968.2,2967.2,12.70968597]
[1768986050978,12.10852569,2968.0,2967.2,12.70968597]
[1768986052180,12.10852569,2968.0,2967.1,13.26668597]
[1768986052379,12.10852569,2968.0,2967.1,12.70968597]
[1768986053202,12.10852569,2968.0,2967.3,12.70968597]
[1768986055117,12.10852569,2967.8,2967.1,12.70968597]
[1768986055301,13.32358999,2967.8,2967.1,12.70968597]
[1768986057430,12.10852569,2967.8,2967.1,12.70968597]
[1768986059025,12.10852569,2968.2,2967.3,12.70968597]
[1768986059930,12.10852569,2968.0,2967.2,4.91166358]
[1768986060096,12.10852569,2968.0,2967.3,12.70968597]
[1768986060921,12.15064301,2967.9,2967.3,12.70968597]
[1768986061096,12.10852569,2967.9,2967.3,12.70968597]
[1768986063825,12.10852569,2967.9,2967.3,12.71168597]
[1768986064039,13.31937826,2967.9,2967.3,12.71168597]
[1768986064339,12.4124133,2967.8,2967.3,12.71168597]
[1768986066430,12.4114133,2967.6,2967.0,0.002]
[1768986068116,0.04212299,2967.5,2967.0,0.002]
[1768986068431,12.4114133,2967.4,2967.0,0.002]
[1768986071730,12.4114133,2967.4,2967.0,11.87383562]
[1768986072126,1.24535363,2967.5,2967.0,11.87383562]
[1768986072326,12.4114133,2967.6,2967.0,11.87383562]
[1768986075844,12.4114133,2967.6,2967.2,0.002]
[1768986076050,0.001,2967.8,2967.0,0.002]
[1768986076051,0.001,2967.4,2967.0,0.002]
[1768986076356,12.92636497,2967.3,2967.0,0.002]
[1768986077654,0.001,2967.4,2967.1,12.63132756]
[1768986077866,0.001,2967.8,2967.3,12.63132756]
[1768986078047,12.92736497,2967.8,2967.3,12.63132756]
[1768986078842,12.96848513,2967.7,2967.1,12.63132756]
[1768986079148,12.92636497,2967.7,2967.1,12.63132756]
[1768986084046,12.92736497,2967.8,2967.1,12.63132756]
[1768986085554,0.001,2967.8,2967.1,14.72287621]
[1768986086528,12.92736497,2967.8,2967.1,14.72287621]
[1768986087752,12.92736497,2967.8,2967.3,12.63332756]
[1768986088056,0.001,2967.6,2967.3,12.63332756]
[1768986089545,0.001,2967.6,2967.3,0.002]
[1768986089934,12.92636497,2968.3,2967.5,4.91166358]
[1768986090246,12.92636497,2968.3,2967.6,12.63132756]
[1768986090438,12.92636497,2968.9,2967.6,12.63132756]
[1768986090645,12.92636497,2968.7,2967.9,12.63132756]
[1768986090839,12.92636497,2968.7,2968.1,12.63132756]
[1768986091656,12.92636497,2968.7,2968.2,12.63132756]
[1768986091861,12.92636497,2968.9,2968.2,12.63132756]
[1768986092064,12.92636497,2968.9,2968.5,12.63132756]
[1768986092447,0.0008,2969.4,2968.5,12.63132756]
[1768986092756,12.92636497,2969.3,2968.8,12.63132756]
[1768986092957,12.92716497,2969.4,2968.8,12.63132756]
[1768986093962,0.0008,2969.4,2968.8,12.63132756]
[1768986094530,12.96926101,2969.4,2968.8,12.63132756]
[1768986094848,12.92716497,2969.4,2968.8,12.63132756]
[1768986097663,12.92716497,2969.4,2968.8,13.78164388]
[1768986100074,0.001,2969.2,2968.8,13.78164388]
[1768986101445,12.92736497,2969.2,2968.8,13.78164388]
[1768986103465,12.92736497,2969.2,2968.8,12.63132756]
[1768986104571,0.001,2969.2,2968.8,12.63132756]
[1768986109290,0.0008,2969.7,2969.1,12.70523823]
[1768986111061,0.0008,2969.7,2969.2,12.70523823]
[1768986111264,0.0008,2969.7,2969.4,12.70523823]
[1768986111462,0.0008,2970.0,2969.4,12.70523823]
[1768986111877,0.04288754,2970.0,2969.4,12.70523823]
[1768986112697,12.7883168,2970.0,2969.4,12.70523823]
[1768986112895,12.74622926,2970.0,2969.4,12.70523823]
[1768986114802,12.74622926,2970.0,2969.4,14.46655772]
[1768986114975,12.74542926,2969.8,2968.8,12.70523823]
[1768986115181,12.74542926,2969.6,2968.8,12.70523823]
[1768986115501,12.74542926,2969.4,2968.8,12.70523823]
[1768986115805,12.74542926,2969.4,2968.8,13.97576205]
[1768986120468,12.74542926,2969.9,2968.9,12.70523823]
[1768986120675,12.74542926,2969.7,2968.9,12.70523823]
[1768986120875,12.74542926,2969.6,2968.9,12.70523823]
[1768986121275,12.74542926,2969.6,2968.8,1.27052382]
[1768986121804,12.74542926,2969.6,2968.8,14.20412657]
[1768986121975,12.74542926,2969.6,2968.9,1.91120833]
[1768986122179,11.8840473,2969.4,2968.8,14.20412657]
[1768986122573,11.8840473,2969.4,2968.8,1.27052382]
[1768986122906,11.8840473,2969.4,2967.3,5.14352701]
[1768986122907,11.8840473,2969.2,2967.9,12.93360275]
[1768986123672,8.27564578,2969.4,2967.7,12.93360275]
[1768986123673,11.8840473,2969.0,2967.7,12.93360275]
[1768986123873,11.8840473,2969.0,2967.8,13.49060275]
[1768986124074,11.8840473,2968.8,2967.8,13.49060275]
[1768986124497,11.8840473,2968.8,2967.6,12.93560275]
[1768986124831,11.8840473,2968.7,2967.6,12.93560275]
[1768986125812,11.8840473,2968.7,2967.9,12.93360275]
[1768986126110,0.001,2969.8,2968.2,12.93360275]
[1768986126111,11.8840473,2968.9,2968.2,12.93360275]
[1768986126299,13.07245203,2968.9,2968.2,12.93360275]
[1768986126475,13.07245203,2968.9,2967.9,12.93360275]
[1768986126679,11.8840473,2968.9,2967.9,12.93360275]
[1768986127916,11.8840473,2968.9,2968.0,12.93360275]
[1768986128429,11.8840473,2969.7,2968.5,12.93360275]
[1768986128597,11.8840473,2969.5,2968.5,12.93360275]
[1768986128793,11.8840473,2969.3,2968.5,12.93360275]
[1768986129819,11.8840473,2969.1,2968.5,12.93360275]
[1768986130318,11.8840473,2968.9,2967.8,16.30309088]
[1768986130517,11.8840473,2968.9,2967.8,12.93360275]
[1768986130704,11.8840473,2968.9,2967.9,14.28266303]
[1768986131020,0.04210455,2968.8,2967.9,14.28266303]
[1768986131195,11.8840473,2968.7,2967.9,14.28266303]
[1768986135887,11.8840473,2968.7,2968.1,0.002]
[1768986136729,12.50125977,2968.5,2968.1,0.002]
[1768986136937,12.50125977,2968.5,2967.9,0.002]
[1768986137822,12.50125977,2968.5,2967.6,0.002]
[1768986138294,12.50125977,2968.5,2967.6,12.72664531]
[1768986138623,12.50125977,2968.3,2967.6,12.72664531]
[1768986139194,13.43778009,2968.3,2967.6,0.002]
[1768986143132,13.43778009,2968.3,2967.6,12.72664531]
[1768986143625,12.50125977,2968.9,2968.0,12.72464531]
[1768986143823,12.50125977,2968.7,2968.0,12.72464531]
[1768986144208,12.54336716,2968.6,2968.0,12.72464531]
[1768986144404,12.50125977,2968.6,2968.0,12.72464531]
[1768986146636,12.50125977,2968.9,2968.0,12.72464531]
[1768986146838,14.43346531,2968.9,2968.0,12.72464531]
[1768986147853,12.50125977,2968.7,2968.0,12.72464531]
[1768986148047,12.50125977,2968.5,2967.6,12.72664531]
[1768986148347,12.50125977,2968.3,2967.6,12.72664531]
[1768986148560,12.50125977,2968.3,2967.6,14.33630443]
[1768986149127,12.50125977,2968.3,2967.8,0.002]
[1768986151261,0.001,2968.4,2967.9,12.72464531]
[1768986154328,12.54436999,2968.4,2967.9,12.72464531]
[1768986154553,12.50225977,2968.4,2967.9,12.72464531]
[1768986154763,12.50225977,2968.4,2967.8,0.002]
[1768986155056,12.50225977,2968.4,2967.8,12.72664531]
[1768986155248,12.50225977,2968.4,2967.8,14.49030551]
[1768986161941,0.001,2968.2,2967.8,14.49030551]
[1768986163149,12.50225977,2968.2,2967.8,1.7656602]
[1768986163359,12.50225977,2968.2,2967.8,0.002]
[1768986163553,12.50225977,2968.2,2967.6,0.002]
[1768986166355,12.50225977,2968.2,2967.6,11.85712275]
[1768986167061,0.001,2968.2,2967.8,11.85512275]
[1768986167234,0.001,2968.2,2967.8,13.53192649]
[1768986167631,0.001,2968.2,2967.8,11.85512275]
[1768986176672,11.80939683,2968.2,2967.8,11.85512275]
[1768986177472,11.80939683,2968.2,2967.6,11.85712275]
[1768986178243,11.80939683,2968.2,2967.6,0.002]
[1768986178642,11.80939683,2968.2,2967.6,11.85712275]
[1768986179963,11.80939683,2968.2,2967.6,13.53412649]
[1768986183369,11.80939683,2968.2,2967.6,11.85712275]
[1768986183784,11.80939683,2968.2,2967.6,0.002]
[1768986184203,11.80939683,2968.2,2967.6,12.61432368]
[1768986185711,11.80939683,2968.2,2967.8,12.61432368]
[1768986185999,0.001,2968.0,2967.8,0.002]
[1768986187503,0.001,2968.0,2967.8,12.61432368]
[1768986191313,0.001,2968.0,2967.8,0.002]
[1768986191883,12.40784454,2968.0,2967.8,0.002]
[1768986194028,0.001,2968.0,2967.8,0.002]
[1768986200827,0.001,2968.0,2967.8,12.04044399]
[1768986203032,0.001,2968.0,2967.8,12.04204399]
[1768986205328,11.78638959,2968.9,2967.9,12.03844399]
[1768986205526,11.78638959,2968.7,2967.9,12.03844399]
[1768986209334,0.001,2968.5,2967.9,12.03844399]
[1768986209630,11.78738959,2968.5,2967.9,12.03844399]
[1768986209834,11.78738959,2968.5,2968.0,13.73373985]
[1768986210129,11.78738959,2968.5,2968.0,1.69529586]
[1768986212607,11.78638959,2968.8,2968.4,4.91091462]
[1768986212944,11.78638959,2969.0,2968.5,12.03844399]
[1768986213442,11.78638959,2969.0,2968.2,0.557]
[1768986213443,11.78638959,2969.8,2968.8,12.03844399]
[1768986214215,11.78638959,2969.6,2968.5,12.03844399]
[1768986214508,11.78638959,2969.4,2968.8,12.03844399]
[1768986214708,11.78638959,2969.9,2969.1,12.03844399]
[1768986214909,12.96510855,2969.9,2969.1,12.03844399]
[1768986215941,11.78638959,2969.9,2969.1,12.03844399]
[1768986216335,11.78718959,2970.0,2969.4,12.03844399]
[1768986219358,11.78718959,2970.0,2969.1,12.03844399]
[1768986220916,0.001,2969.8,2969.1,12.03844399]
[1768986221111,11.78738959,2969.8,2969.1,3.36802284]
[1768986221346,11.78738959,2969.8,2969.2,12.86633774]
[1768986222059,0.001,2969.8,2969.2,12.86633774]
[1768986223063,11.78738959,2969.8,2969.2,12.86633774]
[1768986225667,11.78738959,2969.8,2969.2,0.82789375]
[1768986225822,11.81224285,2969.6,2968.7,12.26564867]
[1768986226022,11.81224285,2969.6,2968.9,4.91091462]
[1768986226227,11.81324285,2969.8,2969.0,12.26564867]
[1768986226627,11.81324285,2969.8,2969.1,12.26564867]
[1768986227583,0.001,2969.8,2969.3,12.26564867]